fUSD/lending_fUSD_20260214
["ID","MTS","AMOUNT","RATE_DAILY","PERIOD"]
[405352402,1771056640569,-500.0,0.00016237,2]
[405352403,1771056640579,-500.0,0.00016237,2]
[405352404,1771056640589,-500.0,0.00016237,2]
[405352405,1771056640598,-500.0,0.00016237,2]
[405352406,1771056640607,-500.0,0.00016237,2]
[405352407,1771056640616,-334.41368503,0.00016237,2]
[405352408,1771056640626,-500.0,0.00016237,2]
[405352409,1771056640635,-500.0,0.00016237,2]
[405352410,1771056640644,-500.0,0.00016237,2]
[405352411,1771056640653,-276.01604218,0.00016237,2]
[405352412,1771056640663,-500.0,0.00016237,2]
[405352413,1771056640672,-500.0,0.00016237,2]
[405352414,1771056640681,-500.0,0.00016237,2]
[405352416,1771056640690,-500.0,0.00016237,2]
[405352418,1771056640699,-500.0,0.00016237,2]
[405352420,1771056640709,-527.33835247,0.00016237,2]
[405352422,1771056640718,-500.0,0.00016237,2]
[405352424,1771056640727,-500.0,0.00016237,2]
[405352426,1771056640736,-500.0,0.00016237,2]
[405352428,1771056640745,-500.0,0.00016237,2]
[405352430,1771056640755,-356892.43996667,0.00016238,2]
[405352445,1771056641152,-599.09702731,0.00016238,2]
[405352446,1771056641164,-74040.13224822,0.00016238,2]
[405352447,1771056641173,-5545.7949709,0.00016238,2]
[405352448,1771056641182,-151.0,0.00016238,2]
[405352449,1771056641191,-151.0,0.00016238,2]
[405352450,1771056641200,-318414.1737004,0.00016238,2]
[405352451,1771056641209,-151.0,0.00016238,2]
[405352452,1771056641219,-214.285831,0.00016238,2]
[405352453,1771056641228,-151.0,0.00016238,2]
[405352454,1771056641237,-151.0,0.00016238,2]
[405352455,1771056641246,-151.0,0.00016238,2]
[405352456,1771056641255,-151.0,0.00016238,2]
[405352457,1771056641264,-151.0,0.00016238,2]
[405352458,1771056641274,-151.0,0.00016238,2]
[405352459,1771056641283,-151.0,0.00016238,2]
[405352460,1771056641292,-215.973522,0.00016238,2]
[405352461,1771056641301,-589.797287,0.00016238,2]
[405352462,1771056641310,-589.797287,0.00016238,2]
[405352463,1771056641319,-589.797287,0.00016238,2]
[405352464,1771056641329,-589.797287,0.00016238,2]
[405352465,1771056641338,-589.797287,0.00016238,2]
[405352466,1771056641347,-589.797287,0.00016238,2]
[405352467,1771056641356,-589.797287,0.00016238,2]
[405352468,1771056641366,-589.797285,0.00016238,2]
[405352469,1771056641375,-151.0,0.00016238,2]
[405352470,1771056641384,-151.0,0.00016238,2]
[405352471,1771056641393,-151.0,0.00016238,2]
[405352472,1771056641403,-151.0,0.00016238,2]
[405352473,1771056641412,-151.0,0.00016238,2]
[405352474,1771056641421,-151.0,0.00016238,2]
[405352475,1771056641430,-151.0,0.00016238,2]
[405352476,1771056641439,-151.0,0.00016238,2]
[405352477,1771056641449,-151.0,0.00016238,2]
[405352478,1771056641458,-205.161971,0.00016238,2]
[405352479,1771056641467,-151.0,0.00016238,2]
[405352480,1771056641477,-151.0,0.00016238,2]
[405352481,1771056641486,-151.0,0.00016238,2]
[405352482,1771056641495,-151.0,0.00016238,2]
[405352483,1771056641504,-151.0,0.00016238,2]
[405352484,1771056641513,-151.0,0.00016238,2]
[405352485,1771056641522,-151.0,0.00016238,2]
[405352486,1771056641531,-151.0,0.00016238,2]
[405352487,1771056641541,-292.946264,0.00016238,2]
[405352488,1771056641550,-151.0,0.00016238,2]
[405352489,1771056641560,-151.0,0.00016238,2]
[405352490,1771056641571,-151.0,0.00016238,2]
[405352491,1771056641580,-151.0,0.00016238,2]
[405352492,1771056641590,-209.428383,0.00016238,2]
[405352493,1771056641600,-250.84,0.00016265,2]
[405352494,1771056641609,-210.07340461,0.00016346,2]
[405352495,1771056641620,-267.46074303,0.00016346,2]
[405352496,1771056641630,-500.0,0.00016413,2]
[405352497,1771056641640,-500.0,0.00016413,2]
[405352498,1771056641650,-500.0,0.00016413,2]
[405352499,1771056641662,-500.0,0.00016413,2]
[405352500,1771056641671,-500.0,0.00016413,2]
[405352501,1771056641682,-2330.7487373,0.00016414,2]
[405352502,1771056641691,-200.0,0.00016415,2]
[405352503,1771056641701,-2000.0,0.00016415,2]
[405352504,1771056641713,-200.0,0.00016415,2]
[405352505,1771056641723,-166.66,0.00016429,2]
[405352506,1771056641732,-297.0,0.00016451,2]
[405352507,1771056641742,-167.2,0.00016457,2]
[405352508,1771056641751,-350.0,0.00016475,2]
[405352509,1771056641760,-321.0,0.00016533,2]
[405352510,1771056641770,-2000.0,0.0001655,2]
[405352511,1771056641779,-1680.0,0.00016571,2]
[405352512,1771056641789,-200.0,0.00016579,2]
[405352513,1771056641800,-2000.0,0.00016716,2]
[405352514,1771056641813,-2000.0,0.00016716,2]
[405352515,1771056641823,-2000.0,0.00016716,2]
[405352516,1771056641832,-2000.0,0.00016716,2]
[405352517,1771056641842,-2000.0,0.00016716,2]
[405352518,1771056641851,-200.0,0.00016745,2]
[405352519,1771056641861,-350.0,0.00016759,2]
[405352520,1771056641870,-151.0,0.0001689,2]
[405352521,1771056641880,-151.0,0.0001689,2]
[405352522,1771056641889,-320.8383729,0.00016894,2]
[405352523,1771056641899,-500.0,0.00016899,2]
[405352524,1771056641910,-509.68,0.00016899,2]
[405352525,1771056641919,-500.0,0.00016899,2]
[405352526,1771056641931,-500.0,0.00016899,2]
[405352527,1771056641940,-500.0,0.00016899,2]
[405352528,1771056641951,-500.0,0.00016899,2]
[405352529,1771056641961,-173.43456991,0.000169,2]
[405352530,1771056641971,-277.0,0.00016904,2]
[405352531,1771056641981,-323.0,0.00016904,2]
[405352532,1771056641990,-349.0,0.00016904,2]
[405352533,1771056642000,-200.0,0.00016912,2]
[405352534,1771056642009,-178.0,0.00016933,2]
[405352535,1771056642024,-209.0,0.00016935,2]
[405352536,1771056642034,-1000.0,0.00016956,2]
[405352537,1771056642044,-700.0,0.0001696,2]
[405352538,1771056642053,-5353.0,0.0001697,2]
[405352539,1771056642063,-166.66,0.00016971,2]
[405352540,1771056642072,-193.0,0.00016991,2]
[405352541,1771056642080,-350.0,0.00017068,2]
[405352542,1771056642090,-350.0,0.00017078,2]
[405352543,1771056642101,-200.0,0.00017082,2]
[405352544,1771056642110,-270.0,0.00017122,2]
[405352545,1771056642121,-524.29618187,0.00017205,2]
[405352546,1771056642131,-500.0,0.00017205,2]
[405352547,1771056642141,-500.0,0.00017205,2]
[405352548,1771056642150,-500.0,0.00017205,2]
[405352549,1771056642159,-506.43974224,0.00017206,2]
[405352550,1771056642169,-500.0,0.00017206,2]
[405352551,1771056642178,-166.0,0.00017256,2]
[405352552,1771056642188,-194.0,0.00017256,2]
[405352553,1771056642197,-209.0,0.00017256,2]
[405352554,1771056642206,-155.0,0.00017269,2]
[405352555,1771056642216,-167.2,0.00017323,2]
[405352556,1771056642225,-507.71795096,0.00017359,2]
[405352557,1771056642234,-1000.0,0.00017399,2]
[405352558,1771056642243,-150.0,0.00017406,2]
[405352559,1771056642252,-1000.0,0.00017425,2]
[405352560,1771056642261,-150.0,0.00017428,2]
[405352561,1771056642392,-636.13,0.00017433,2]
[405352562,1771056642402,-583.11819149,0.00017433,2]
[405352563,1771056642413,-1000.0,0.00017435,2]
[405352564,1771056642423,-150.0,0.00017441,2]
[405352565,1771056642434,-350.0,0.00017442,2]
[405352566,1771056642444,-1000.0,0.00017444,2]
[405352567,1771056642454,-1000.0,0.00017447,2]
[405352568,1771056642463,-150.0,0.00017451,2]
[405352569,1771056642473,-1000.0,0.00017452,2]
[405352570,1771056642483,-150.0,0.00017453,2]
[405352571,1771056642494,-150.0,0.00017459,2]
[405352572,1771056642505,-1000.0,0.0001746,2]
[405352573,1771056642515,-1000.0,0.00017463,2]
[405352574,1771056642526,-500.0,0.00017464,2]
[405352575,1771056642539,-150.0,0.0001747,2]
[405352576,1771056642549,-1000.0,0.00017474,2]
[405352577,1771056642558,-1000.0,0.00017477,2]
[405352578,1771056642567,-1000.0,0.00017485,2]
[405352579,1771056642577,-167.75905219,0.00017485,2]
[405352580,1771056642587,-150.0,0.00017486,2]
[405352581,1771056642596,-1000.0,0.00017494,2]
[405352582,1771056642606,-1000.0,0.00017495,2]
[405352583,1771056642615,-1000.0,0.00017496,2]
[405352584,1771056642624,-1000.0,0.00017496,2]
[405352585,1771056642633,-151.0,0.00017496,2]
[405352586,1771056642643,-151.0,0.00017496,2]
[405352587,1771056642652,-151.0,0.00017496,2]
[405352588,1771056642662,-151.0,0.00017496,2]
[405352589,1771056642672,-151.0,0.00017496,2]
[405352591,1771056642683,-151.0,0.00017496,2]
[405352592,1771056642693,-151.0,0.00017496,2]
[405352593,1771056642702,-151.0,0.00017496,2]
[405352594,1771056642711,-1000.0,0.00017506,2]
[405352595,1771056642721,-1000.0,0.00017509,2]
[405352596,1771056642731,-166.66,0.00017514,2]
[405352597,1771056642740,-150.0,0.00017519,2]
[405352598,1771056642749,-151.0,0.00017519,2]
[405352599,1771056642758,-151.0,0.00017519,2]
[405352600,1771056642767,-150.0,0.00017523,2]
[405352601,1771056642777,-1208.0,0.00017527,2]
[405352602,1771056642787,-918.0,0.00017527,2]
[405352603,1771056642796,-5969.0,0.00017527,2]
[405352604,1771056642804,-412.0,0.00017527,2]
[405352605,1771056642814,-2450.0,0.00017527,2]
[405352606,1771056642823,-1000.0,0.00017537,2]
[405352607,1771056642832,-1000.0,0.00017538,2]
[405352608,1771056642841,-1000.0,0.00017538,2]
[405352609,1771056642851,-1000.0,0.00017546,2]
[405352610,1771056642861,-500.0,0.00017551,2]
[405352611,1771056642870,-500.0,0.00017551,3]
[405352612,1771056642880,-500.0,0.00017551,4]
[405352613,1771056642889,-150.0,0.00017553,2]
[405352614,1771056642900,-1000.0,0.00017563,2]
[405352615,1771056642910,-1000.0,0.00017569,2]
[405352616,1771056642919,-1000.0,0.00017569,2]
[405352617,1771056642932,-1000.0,0.0001757,2]
[405352618,1771056642941,-1000.0,0.00017571,2]
[405352619,1771056642951,-1045.36603409,0.00017574,2]
[405352620,1771056642961,-1000.0,0.00017575,2]
[405352621,1771056642971,-1000.0,0.00017577,2]
[405352622,1771056642980,-150.0,0.00017585,2]
[405352623,1771056642989,-1000.0,0.00017585,2]
[405352624,1771056642999,-1000.0,0.0001759,2]
[405352625,1771056643009,-169.67564379,0.00017598,2]
[405352626,1771056643019,-150.0,0.00017599,2]
[405352627,1771056643028,-151.0,0.000176,2]
[405352628,1771056643037,-3000.0,0.000176,2]
[405352629,1771056643050,-1000.0,0.00017608,2]
[405352630,1771056643060,-1000.0,0.00017614,2]
[405352631,1771056643070,-150.0,0.00017615,2]
[405352632,1771056643079,-1000.0,0.00017621,2]
[405352633,1771056643089,-1000.0,0.00017623,2]
[405352634,1771056643099,-1000.0,0.00017623,2]
[405352635,1771056643108,-150.0,0.00017625,2]
[405352636,1771056643118,-1000.0,0.00017628,2]
[405352637,1771056643128,-1000.0,0.00017633,2]
[405352638,1771056643138,-1000.0,0.00017643,2]
[405352639,1771056643148,-1000.0,0.00017643,2]
[405352640,1771056643158,-1000.0,0.00017643,2]
[405352641,1771056643168,-150.0,0.00017644,2]
[405352642,1771056643179,-150.0,0.0001765,2]
[405352643,1771056643188,-150.0,0.00017651,2]
[405352644,1771056643197,-1000.0,0.00017652,2]
[405352645,1771056643220,-1000.0,0.00017656,2]
[405352646,1771056643242,-1000.0,0.00017663,2]
[405352647,1771056643261,-1000.0,0.00017667,2]
[405352648,1771056643279,-150.0,0.00017673,2]
[405352649,1771056643293,-1000.0,0.00017684,2]
[405352650,1771056643312,-30729.0,0.000178,2]
[405352651,1771056643331,-10000.0,0.000178,2]
[405352652,1771056643353,-5000.0,0.00017808,2]
[405352653,1771056643371,-500.0,0.00017808,2]
[405352654,1771056643389,-500.0,0.00017808,2]
[405352655,1771056643419,-500.0,0.00017808,2]
[405352656,1771056643439,-500.0,0.00017808,2]
[405352657,1771056643453,-500.0,0.00017808,2]
[405352658,1771056643471,-500.0,0.00017808,2]
[405352659,1771056643485,-500.0,0.00017808,2]
[405352660,1771056643506,-500.0,0.00017808,2]
[405352661,1771056643519,-485.04896166,0.00017808,2]
[405352662,1771056643538,-500.0,0.00017808,2]
[405352663,1771056643557,-500.0,0.00017808,2]
[405352664,1771056643587,-500.0,0.00017808,2]
[405352665,1771056643605,-500.0,0.00017808,2]
[405352666,1771056643623,-589.53427316,0.00017808,2]
[405352667,1771056643640,-500.0,0.00017808,2]
[405352668,1771056643657,-500.0,0.00017808,2]
[405352669,1771056643673,-500.0,0.00017808,2]
[405352670,1771056643689,-500.0,0.00017808,2]
[405352671,1771056643704,-500.0,0.00017808,2]
[405352672,1771056643719,-400.0,0.00017808,2]
[405352673,1771056643734,-801.11397406,0.00017808,2]
[405352674,1771056643753,-928.0,0.0001785,2]
[405352675,1771056643768,-162.39873872,0.00017874,2]
[405352676,1771056643783,-1533.53534551,0.000179,2]
[405352677,1771056643799,-2250.35786804,0.00017951,2]
[405352678,1771056643814,-394.40161693,0.00017999,2]
[405352679,1771056643829,-500.0,0.00017999,2]
[405352680,1771056643844,-159.7,0.00017999,2]
[405352681,1771056643860,-198.92,0.00017999,5]
[405352682,1771056643877,-500.0,0.00017999,2]
[405352683,1771056643892,-500.0,0.00017999,2]
[405352684,1771056643907,-500.0,0.00017999,2]
[405352685,1771056643925,-500.0,0.00017999,2]
[405352686,1771056643941,-121798.12240385,0.00018,2]
[405352688,1771056644823,-347.73608874,0.00018,2]
[405352689,1771056644835,-546.25982466,0.00018,2]
[405352690,1771056644847,-514.71934786,0.00018,2]
[405352691,1771056644859,-2783.08874258,0.00018,2]
[405352692,1771056644871,-11140.9429633,0.00018,2]
[405352693,1771056644882,-590.72355662,0.00018,2]
[405352694,1771056644893,-1280.8790409,0.00018,2]
[405352713,1771056646851,-2263.35982424,0.00018,2]
[405352714,1771056646863,-1444.1960082,0.00018,2]
[405352715,1771056646875,-251.46166541,0.00018,2]
[405352716,1771056646904,-20796.01146743,0.00018,2]
[405352720,1771056648153,-6595.0,0.00017527,2]
[405352721,1771056648163,-31689.37507237,0.00018,2]
[405352722,1771056648173,-2009.0,0.00018,2]
[405352723,1771056648183,-7825.61521685,0.00018028,2]
[405352724,1771056648192,-166.66,0.00018056,2]
[405352725,1771056648201,-160.0,0.00018067,2]
[405352726,1771056648211,-1442.1,0.00018073,2]
[405352727,1771056648220,-152.0,0.00018083,2]
[405352728,1771056648229,-1507.0,0.00018083,2]
[405352729,1771056648239,-1507.0,0.00018083,2]
[405352730,1771056648248,-152.0,0.00018083,2]
[405352731,1771056648258,-153.0,0.00018083,2]
[405352732,1771056648268,-152.0,0.00018083,2]
[405352733,1771056648277,-159.0,0.00018083,2]
[405352734,1771056648286,-1507.0,0.00018083,2]
[405352735,1771056648295,-153.0,0.00018083,2]
[405352736,1771056648304,-152.0,0.00018083,2]
[405352737,1771056648313,-160.9957844,0.00018083,2]
[405352738,1771056648323,-1507.0,0.00018083,2]
[405352739,1771056648332,-153.0,0.00018083,2]
[405352740,1771056648342,-152.0,0.00018083,2]
[405352741,1771056648351,-161.96732508,0.00018083,2]
[405352742,1771056648361,-1507.0,0.00018083,2]
[405352743,1771056648370,-153.0,0.00018083,2]
[405352744,1771056648380,-152.0,0.00018083,2]
[405352745,1771056648391,-152.0,0.00018083,2]
[405352746,1771056648402,-152.0,0.00018083,2]
[405352747,1771056648411,-152.0,0.00018083,2]
[405352748,1771056648423,-1507.0,0.00018083,2]
[405352749,1771056648433,-1507.0,0.00018083,2]
[405352750,1771056648442,-153.0,0.00018083,2]
[405352751,1771056648453,-153.0,0.00018083,2]
[405352752,1771056648462,-3222.59896776,0.00018094,2]
[405352753,1771056648471,-1782.68755098,0.000181,2]
[405352754,1771056648481,-2000.0,0.000181,2]
[405352755,1771056648491,-2000.0,0.000181,2]
[405352756,1771056648500,-282.26,0.00018111,2]
[405352757,1771056648509,-152.0,0.00018136,2]
[405352758,1771056648518,-896.9705392,0.00018156,2]
[405352759,1771056648528,-152.0,0.00018181,2]
[405352760,1771056648538,-1507.0,0.00018181,2]
[405352761,1771056648547,-152.0,0.00018181,2]
[405352762,1771056648557,-1507.0,0.00018181,2]
[405352763,1771056648567,-153.0,0.00018181,2]
[405352764,1771056648576,-1507.0,0.00018181,2]
[405352765,1771056648586,-152.0,0.00018181,2]
[405352766,1771056648595,-153.0,0.00018181,2]
[405352767,1771056648605,-152.0,0.00018181,2]
[405352768,1771056648615,-1507.0,0.00018181,2]
[405352769,1771056648625,-153.0,0.00018181,2]
[405352770,1771056648635,-1507.0,0.00018181,2]
[405352771,1771056648644,-152.0,0.00018181,2]
[405352772,1771056648654,-153.0,0.00018181,2]
[405352773,1771056648663,-1507.0,0.00018181,2]
[405352774,1771056648673,-155.3069683,0.00018181,2]
[405352775,1771056648682,-153.0,0.00018181,2]
[405352776,1771056648692,-153.0,0.00018181,2]
[405352777,1771056648702,-153.0,0.00018181,2]
[405352778,1771056648711,-155.21062774,0.00018181,2]
[405352779,1771056648721,-167.2,0.0001819,2]
[405352780,1771056648730,-3319.0,0.000182,2]
[405352781,1771056648740,-1381.0,0.00018227,2]
[405352782,1771056648750,-268.0,0.00018231,2]
[405352783,1771056648760,-214.0,0.00018231,2]
[405352784,1771056648769,-200.0,0.00018231,2]
[405352785,1771056648779,-150.663,0.00018231,2]
[405352786,1771056648788,-1337.0,0.00018231,2]
[405352787,1771056648798,-3489.0,0.00018231,2]
[405352788,1771056648809,-618.465,0.00018231,2]
[405352789,1771056648819,-1288.0,0.00018231,2]
[405352790,1771056648829,-150.328,0.00018231,2]
[405352791,1771056648841,-1274.0,0.00018231,2]
[405352792,1771056648850,-19900.0,0.0001824,2]
[405352793,1771056648860,-395.0,0.00018256,2]
[405352794,1771056648870,-350.0,0.00018274,2]
[405352795,1771056648881,-168.0,0.00018287,2]
[405352796,1771056648891,-350.0,0.00018385,2]
[405352797,1771056648900,-700.0,0.0001847,2]
[405352798,1771056648911,-988.0,0.000185,2]
[405352799,1771056648920,-201.0,0.000185,2]
[405352800,1771056648931,-1237.43412,0.00018526,2]
[405352801,1771056648942,-228.30910424,0.00018534,2]
[405352802,1771056648952,-166.66,0.00018598,2]
[405352803,1771056648962,-500.0,0.00018694,2]
[405352804,1771056648971,-500.0,0.00018694,2]
[405352805,1771056648980,-636.79951933,0.00018694,2]
[405352806,1771056648992,-500.0,0.00018694,2]
[405352807,1771056649002,-4779.78786372,0.00018695,2]
[405352808,1771056649012,-955.95757274,0.00018695,2]
[405352809,1771056649021,-191.19151455,0.00018695,2]
[405352810,1771056649032,-1107.54,0.00018695,2]
[405352811,1771056649041,-155.0,0.00018839,2]
[405352812,1771056649051,-1000.0,0.0001884,2]
[405352813,1771056649061,-387.0,0.00018877,2]
[405352814,1771056649070,-381.0,0.00018912,2]
[405352815,1771056649079,-381.0,0.00018955,2]
[405352816,1771056649089,-979.9283,0.00018984,2]
[405352817,1771056649098,-1148.0477391,0.00019,2]
[405352818,1771056649109,-523.0,0.00019,2]
[405352819,1771056649118,-282.26,0.00019017,2]
[405352820,1771056649127,-276.1088733,0.00019036,2]
[405352821,1771056649138,-300.0,0.00019044,2]
[405352822,1771056649147,-677.64345767,0.00019044,2]
[405352823,1771056649156,-267.40250045,0.00019044,2]
[405352824,1771056649166,-96287.7304671,0.00019045,2]
[405352825,1771056649175,-71047.8055713,0.00019045,2]
[405352826,1771056649184,-167.2,0.00019056,2]
[405352827,1771056649194,-166.66,0.0001914,2]
[405352828,1771056649203,-20176.78,0.00019178,2]
[405352829,1771056649212,-153.833734,0.00019178,2]
[405352830,1771056649221,-395.0,0.00019306,2]
[405352831,1771056649230,-636.13,0.0001937,2]
[405352832,1771056649239,-162.39873872,0.00019661,2]
[405352833,1771056649249,-21484.6967194,0.00019671,2]
[405352834,1771056649259,-15852.9082353,0.00019671,2]
[405352835,1771056649269,-176.7327853,0.0001978,5]
[405352836,1771056649278,-152.0,0.00019795,3]
[405352837,1771056649287,-290.15214462,0.00019873,2]
[405352838,1771056649297,-430.0,0.000199,4]
[405352839,1771056649306,-167.2,0.00019922,2]
[405352840,1771056649315,-700.0,0.0001997,2]
[405352841,1771056649324,-700.0,0.0001997,2]
[405352842,1771056649334,-783.50389378,0.0001997,2]
[405352843,1771056649343,-400.0,0.0001997,2]
[405352844,1771056649352,-500.0,0.00019999,2]
[405352845,1771056649362,-500.0,0.0002,2]
[405352846,1771056649371,-348.88505806,0.0002,2]
[405352847,1771056649381,-500.0,0.0002,2]
[405352848,1771056649390,-500.0,0.0002,2]
[405352849,1771056649400,-644.46838179,0.0002,2]
[405352850,1771056649410,-160.35891044,0.0002,2]
[405352851,1771056649419,-160.35889011,0.0002,2]
[405352852,1771056649429,-183.43706889,0.0002,2]
[405352853,1771056649439,-150.0,0.0002,2]
[405352854,1771056649449,-500.0,0.0002,2]
[405352855,1771056649459,-163.05944559,0.0002,2]
[405352856,1771056649468,-500.0,0.0002,2]
[405352857,1771056649479,-500.0,0.0002,2]
[405352858,1771056649490,-161.79935399,0.0002,2]
[405352859,1771056649500,-505.38783739,0.0002,2]
[405352860,1771056649510,-508.39564711,0.0002,2]
[405352861,1771056649519,-262.5890599,0.0002,2]
[405352862,1771056649528,-504.52857615,0.0002,2]
[405352863,1771056649539,-504.49451487,0.0002,2]
[405352864,1771056649550,-504.19391737,0.0002,2]
[405352865,1771056649561,-504.39261416,0.0002,2]
[405352866,1771056649571,-504.05537293,0.0002,2]
[405352867,1771056649582,-500.0,0.0002,2]
[405352868,1771056649592,-505.16647718,0.0002,2]
[405352869,1771056649601,-500.0,0.0002,2]
[405352870,1771056649613,-160.35638367,0.0002,2]
[405352871,1771056649622,-506.41462618,0.0002,2]
[405352872,1771056649632,-310.00190955,0.0002,2]
[405352873,1771056649642,-167.00988279,0.0002,2]
[405352874,1771056649651,-502.62995963,0.0002,2]
[405352875,1771056649662,-500.0,0.0002,2]
[405352876,1771056649672,-452.50499063,0.0002,2]
[405352877,1771056649683,-500.0,0.0002,2]
[405352878,1771056649693,-230.08307433,0.0002,2]
[405352879,1771056649702,-160.35887245,0.0002,2]
[405352880,1771056649712,-503.88963415,0.0002,2]
[405352881,1771056649721,-500.0,0.0002,2]
[405352882,1771056649732,-500.0,0.0002,2]
[405352883,1771056649742,-501.42730858,0.0002,2]
[405352884,1771056649752,-513.56519854,0.0002,2]
[405352885,1771056649762,-500.0,0.0002,2]
[405352886,1771056649772,-510.53986844,0.0002,2]
[405352887,1771056649781,-500.94088794,0.0002,2]
[405352888,1771056649792,-502.93443566,0.0002,2]
[405352889,1771056649801,-502.05117328,0.0002,2]
[405352890,1771056649811,-4691.00762049,0.0002,2]
[405352891,1771056649820,-7510.55683157,0.0002,2]
[405352892,1771056649830,-200.486835,0.0002,2]
[405352893,1771056649840,-1442.1,0.00020248,2]
[405352894,1771056649851,-188.18,0.00020266,2]
[405352895,1771056649862,-409.58313514,0.00020327,2]
[405352896,1771056649872,-500.0,0.00020356,7]
[405352897,1771056649882,-500.0,0.00020356,7]
[405352898,1771056649891,-1100.0,0.00020356,7]
[405352899,1771056649901,-1287.0,0.00020367,2]
[405352900,1771056649911,-2250.35786804,0.00020489,2]
[405352901,1771056649920,-1208.0,0.00020527,2]
[405352902,1771056649932,-918.0,0.00020527,2]
[405352903,1771056649941,-5969.0,0.00020527,2]
[405352904,1771056649951,-412.0,0.00020527,2]
[405352905,1771056649961,-2450.0,0.00020527,2]
[405352906,1771056649971,-953.90478239,0.00020548,2]
[405352907,1771056649980,-461.91291147,0.00020548,2]
[405352908,1771056649990,-365.01978184,0.00020548,2]
[405352909,1771056650001,-1000.0,0.00020548,2]
[405352910,1771056650012,-502.08212316,0.00020548,2]
[405352911,1771056650022,-1000.0,0.00020548,2]
[405352912,1771056650031,-1002.08813232,0.00020548,2]
[405352913,1771056650041,-1000.0,0.00020548,2]
[405352914,1771056650050,-1000.0,0.00020548,2]
[405352915,1771056650060,-995.94024498,0.00020548,2]
[405352916,1771056650069,-1000.0,0.00020548,2]
[405352917,1771056650079,-1000.0,0.00020548,2]
[405352918,1771056650088,-7825.61521685,0.00020557,2]
[405352919,1771056650097,-188.18,0.00020609,2]
[405352920,1771056650106,-263.33,0.00020678,2]
[405352921,1771056650124,-1000.0,0.00020724,2]
[405352922,1771056650138,-167.2,0.00020788,2]
[405352923,1771056650147,-561.99,0.0002088,2]
[405352924,1771056650156,-188.18,0.00020953,2]
[405352925,1771056650165,-152.0,0.00020984,4]
[405352926,1771056650174,-263.33,0.00021,2]
[405352927,1771056650183,-3853.06,0.0002105,2]
[405352928,1771056650192,-500.0,0.00021095,2]
[405352929,1771056650202,-500.0,0.00021095,2]
[405352930,1771056650211,-366.49473759,0.00021095,2]
[405352931,1771056650220,-1500.0,0.00021096,2]
[405352932,1771056650230,-1500.0,0.00021096,2]
[405352933,1771056650239,-1500.0,0.00021096,2]
[405352934,1771056650248,-1500.0,0.00021096,2]
[405352935,1771056650261,-1500.0,0.00021096,2]
[405352936,1771056650279,-150.0,0.00021231,2]
[405352937,1771056650288,-150.0,0.00021231,2]
[405352938,1771056650297,-150.0,0.00021231,2]
[405352939,1771056650307,-1337.0,0.00021231,2]
[405352940,1771056650316,-3485.0,0.00021231,2]
[405352941,1771056650326,-617.0,0.00021231,2]
[405352942,1771056650335,-1288.0,0.00021231,2]
[405352943,1771056650344,-1273.751,0.00021231,2]
[405352944,1771056650353,-500.0,0.00021258,2]
[405352945,1771056650363,-500.0,0.00021258,2]
[405352946,1771056650373,-500.0,0.00021258,2]